[Event "29th Bosnjaci Open 2025"]
[Site "Bosnjaci"]
[Date "2025.01.06"]
[Round "5.6"]
[White "Berke, Ana"]
[Black "Fercec, Nenad"]
[Result "0-1"]
[ECO "B55"]
[WhiteElo "2133"]
[BlackElo "2382"]
[Annotator "TA"]
[PlyCount "48"]
[EventDate "2025.01.04"]
[EventType "swiss"]
[EventCountry "CRO"]
[SourceTitle "playchess.com"]
[Source "ChessBase"]
[SourceQuality "1"]
[TimeControl "5400+30"]

{[%evp 12,48,6,14,19,12,33,-2,31,5,-1,-83,-76,-80,-55,-191,-131,-156,-152,-155,-142,-308,-254,-266,-277,-527,-494,-666,-666,-710,-303,-705,-697,-1045,-1025,-1179,-716,-1023,-1024]} 1. e4 {[%emt 0:01:23]} c5 {[%emt 0:02:13]} 2. Nf3 {[%emt 0:00:05]} d6 {[%emt 0:00:14]} 3. d4 {[%emt 0:00:07]} cxd4 {[%emt 0:00:06]} 4. Nxd4 {[%emt 0:00:05]} Nf6 {[%emt 0:00:14]} 5. f3 {[%emt 0:00:03]} e5 {[%emt 0:01:03]} 6. Nb3 {[%emt 0:00:06]} Be6 {[%emt 0:00:08]} 7. c4 {[%emt 0:00:08]} a5 {[%emt 0:00:04][%cal Of6e4]} 8. Be3 {[%emt 0:01:07]} a4 {[%emt 0:00:29]} 9. Nc1 {[%emt 0:00:39]} Nbd7 {[%emt 0:07:11][%cal Ob7b5]} 10. Be2 {[%emt 0:04:11]} b5 {[%emt 0:01:04]} 11. c5 {[%emt 0:09:15]} (11. cxb5 $11 {keeps the balance.} d5 12. O-O) 11... d5 $17 {[%emt 0:21:44]} 12. c6 {[%emt 0:01:55]} Nc5 {[%emt 0:04:19]} 13. Nd3 {[%emt 0:08:36]} (13. O-O $15) 13... Qa5+ {[%emt 0:05:08]} (13... Nxd3+ $19 14. Qxd3 d4 15. Qxb5 dxe3 16. c7+ Qd7) 14. Bd2 {[%emt 0:02:42]} Qb6 {[%emt 0:06:35]} 15. Nxe5 {[%emt 0:03:41]} Bd6 {[%emt 0:03:00]} 16. exd5 $2 {[%emt 0:01:28]} (16. Bf4 $17 Bb8 17. Qd4) 16... Bxe5 {[%emt 0:01:23]} (16... Bxd5 17. Nd7 Ncxd7 (17... Nfxd7 18. cxd7+ Nxd7 19. Nc3 $15) 18. cxd7+ Nxd7 19. Bc3 $15) 17. dxe6 {[%emt 0:01:13]} Nxe6 {[%emt 0:02:07]} 18. Bb4 $2 {[%emt 0:08:18]} (18. Na3 O-O (18... Bxb2 19. Nxb5 Bxa1 20. Nd6+ Kf8 21. Qxa1 $17) 19. Nxb5) 18... Rd8 {[%emt 0:04:29]} (18... Qxc6 19. Na3 Nd4 (19... Bxb2 $2 {loses.} 20. Bxb5 $18) 20. Qxd4 Bxd4 21. Bxb5 $14) 19. Qc1 {[%emt 0:26:06] [#]} Bxh2 $1 {[%emt 0:03:56]} 20. Rxh2 {[%emt 0:02:26] Kf1 would now be deadly.} (20. Kf1 Nh5) 20... Qg1+ {[%emt 0:00:32]} 21. Bf1 {[%emt 0:00:04]} Qxh2 {[%emt 0:00:07]} 22. c7 {[%emt 0:02:18]} Qh4+ {[%emt 0:00:11]} ({Not} 22... Qxc7 23. Bxb5+ Nd7 24. Qxc7 Nxc7 25. Bxa4 $14) 23. g3 {[%emt 0:02:11]} Qxb4+ {[%emt 0:00:07]} 24. Nd2 {[%emt 0:00:40] [#]} Nxc7 $1 {[%emt 0:00:56]} 0-1

[Event "29th Bosnjaci Open 2025"]
[Site "Bosnjaci"]
[Date "2025.01.06"]
[Round "5.7"]
[White "Simunic, Krunoslav"]
[Black "Zufic, Miroslav"]
[Result "0-1"]
[ECO "D55"]
[WhiteElo "2122"]
[BlackElo "2313"]
[Annotator "TA"]
[PlyCount "58"]
[EventDate "2025.01.04"]
[EventType "swiss"]
[EventCountry "CRO"]
[SourceTitle "playchess.com"]
[Source "ChessBase"]
[SourceQuality "1"]
[TimeControl "5400+30"]

{[%evp 13,58,13,20,8,6,0,8,0,0,0,25,32,17,0,43,25,33,35,35,30,27,0,0,-15,8,-60,-77,-90,-86,-133,-124,-158,-159,-202,-197,-247,-187,-246,-248,-441,-459,-485,-464,-647,-627,-666,-671]} 1. d4 {[%emt 0:00:45]} Nf6 {[%emt 0:00:06]} 2. c4 {[%emt 0:00:47]} e6 {[%emt 0:00:14]} 3. Nf3 {[%emt 0:00:13]} d5 {[%emt 0:00:54]} 4. Nc3 {[%emt 0:03:15]} Be7 {[%emt 0:00:45]} 5. Bg5 {[%emt 0:04:33]} O-O {[%emt 0:01:57]} 6. e3 {[%emt 0:01:13]} h6 {[%emt 0:02:11]} 7. Bf4 {[%emt 0:01:34]} b6 {[%emt 0:07:43]} 8. cxd5 {[%emt 0:03:08]} Nxd5 {[%emt 0:10:49]} 9. Nxd5 {[%emt 0:02:40]} Qxd5 {[%emt 0:00:37]} 10. a3 {[%emt 0:12:44] The position is equal.} c5 {[%emt 0:07:50]} 11. dxc5 {[%emt 0:03:09]} bxc5 {[%emt 0:03:05]} 12. Qc2 {[%emt 0:07:22]} Nd7 {[%emt 0:21:19]} 13. Rd1 {[%emt 0:03:06]} Qb7 {[%emt 0:03:56]} 14. Bd3 {[%emt 0:07:59]} Nf6 {[%emt 0:00:40] Prevents Bh7+} 15. O-O {[%emt 0:01:59]} Bd7 {[%emt 0:03:42]} 16. Ne5 {[%emt 0:02:34] Nxd7 would now be deadly.} Rfd8 {[%emt 0:01:36]} 17. Qe2 {[%emt 0:14:42]} Ba4 {[%emt 0:06:43]} 18. Rc1 {[%emt 0:02:34]} a6 {[%emt 0:01:05] [#]} 19. b4 {[%emt 0:03:47]} cxb4 $15 {[%emt 0:04:42]} 20. axb4 {[%emt 0:00:59]} Bxb4 {[%emt 0:06:25]} 21. Rb1 {[%emt 0:08:06]} ({White should try} 21. h4) 21... a5 $17 {[%emt 0:01:17]} 22. Ra1 {[%emt 0:03:17]} Be8 {[%emt 0:03:45]} 23. Rfb1 {[%emt 0:01:03]} Qe7 {[%emt 0:01:25]} 24. Bb5 {[%emt 0:02:59]} (24. Bg3 {might work better.}) 24... Rac8 {[%emt 0:03:14]} 25. Bxe8 {[%emt 0:01:17]} (25. Rc1 {was necessary.}) 25... Qxe8 $19 {[%emt 0:00:24]} ({Resist} 25... Rxe8 26. h3) 26. Qf3 $2 {[%emt 0:01:11]} (26. Rc1 {was called for.}) 26... Bc3 {[%emt 0:01:59] Black is clearly winning.} 27. Ra3 {[%emt 0:00:51]} Bxe5 {[%emt 0:01:06]} 28. Bxe5 {[%emt 0:00:05] [#]} Qb5 $3 {[%emt 0:00:11][%mdl 512]} 29. Rba1 {[%emt 0:00:27]} (29. Raa1 Qxe5) 29... Qxe5 {[%emt 0:00:10] Weighted Error Value: White=0.42/Black=0.09 (flawless) .  Mistake:       	White=5     	---        Inaccurate:     	White=2     	Black=1      OK:         	White=5     	Black=8      Best:        	---       	Black=2      Brilliant:      	---       	Black=1} 0-1

[Event "29th Bosnjaci Open 2025"]
[Site "Bosnjaci"]
[Date "2025.01.06"]
[Round "5.8"]
[White "Ljubicic, Mario"]
[Black "Jakovic, Roko"]
[Result "1/2-1/2"]
[ECO "A04"]
[WhiteElo "2115"]
[BlackElo "2273"]
[Annotator "TA"]
[PlyCount "113"]
[EventDate "2025.01.04"]
[EventType "swiss"]
[EventCountry "CRO"]
[SourceTitle "playchess.com"]
[Source "ChessBase"]
[SourceQuality "1"]
[TimeControl "5400+30"]

{[%evp 20,113,13,8,12,-26,55,72,80,53,77,-7,-14,-28,-42,-40,-25,-23,-16,-34,-31,-21,-18,-39,-33,-188,-83,-114,-154,-142,0,-73,-73,-67,-61,-68,-68,-109,-37,-38,-38,-38,-38,-39,-37,-39,-8,-18,0,-43,-42,-52,-40,-46,-40,-54,-46,-46,-46,-46,-46,-46,-46,-49,-47,-47,-46,-47,-40,-54,-47,-47,-47,-47,-47,-47,-40,-40,-40,-40,0,-47,-8,-8,-12,-40,-40,-40,-40,-40,-40,-86,-86,-86,-86,-127]} 1. e4 {[%emt 0:03:33]} c5 {[%emt 0:00:18]} 2. Nf3 {[%emt 0:00:11]} d6 {[%emt 0:00:07]} 3. d3 {[%emt 0:00:19]} Nc6 {[%emt 0:00:21]} 4. g3 {[%emt 0:00:14]} g6 {[%emt 0:00:44]} 5. Bg2 {[%emt 0:00:10]} Bg7 {[%emt 0:00:15]} 6. O-O {[%emt 0:00:19]} e5 {[%emt 0:00:51]} 7. c3 {[%emt 0:00:22]} Nge7 {[%emt 0:00:27]} 8. a3 {[%emt 0:00:11]} O-O {[%emt 0:00:27]} 9. b4 {[%emt 0:00:10]} a6 {[%emt 0:01:25]} 10. Be3 {[%emt 0:15:46]} f5 {[%emt 0:00:56]} 11. exf5 {[%emt 0:05:02]} gxf5 {[%emt 0:02:10]} 12. Qd2 {[%emt 0:05:10] [#]} c4 {[%emt 0:02:03]} ({Better is} 12... f4 $1 $11 13. gxf4 Bg4) 13. dxc4 $14 {[%emt 0:04:35]} f4 {[%emt 0:02:04]} 14. gxf4 {[%emt 0:00:24]} Bg4 {[%emt 0:00:28]} 15. c5 {[%emt 0:08:54]} ({White should play} 15. Ng5 $16) 15... exf4 $11 {[%emt 0:09:01]} 16. cxd6 {[%emt 0:15:18]} fxe3 {[%emt 0:01:38]} 17. dxe7 {[%emt 0:04:46]} exf2+ {[%emt 0:03:36]} 18. Qxf2 {[%emt 0:02:31]} Qxe7 {[%emt 0:02:19]} 19. Nbd2 {[%emt 0:07:27]} Bxc3 {[%emt 0:07:11]} 20. Rae1 $1 {[%emt 0:02:37]} Qg7 {[%emt 0:03:27]} (20... Bd4 $2 21. Qxd4 Nxd4 22. Rxe7 $18) 21. Kh1 {[%emt 0:06:47]} Rad8 {[%emt 0:16:45]} 22. Rd1 $2 {[%emt 0:01:25]} ({White must play} 22. Qc5 $1 $15) 22... Kh8 {[%emt 0:14:32]} (22... Ne5 $19 {[%cal Od8d2] Hoping for ...Rxd2!.} 23. Qh4 Bxd2 24. Nxe5 Bxd1 25. Qc4+ Kh8 26. Nf7+ Rxf7 27. Rxf7 b5) 23. Ne4 {[%emt 0:04:04] [#]} Rxd1 $1 {[%emt 0:03:11]} 24. Rxd1 {[%emt 0:00:08]} Ne5 {[%emt 0:01:31]} (24... Bd4 $1 $17 {[%cal Rd4f2]} 25. Qe2 Be5) 25. Qc5 {[%emt 0:07:29]} (25. Nxc3 $11 Nxf3 (25... Bxf3 26. Bxf3 Nxf3 27. Ne4 $11) 26. Qg3 Nxh2 (26... Qxc3 27. Qxg4 Ne1 28. Qg3 $11) 27. Qxh2 Bxd1 (27... Qxc3 28. Qh6 $11) 28. Nxd1) 25... Bb2 $17 {[%emt 0:09:53]} 26. Neg5 {[%emt 0:00:44]} Nxf3 {[%emt 0:02:02]} 27. Nxf3 {[%emt 0:01:31]} Bxa3 {[%emt 0:06:15]} (27... Bxf3 28. Bxf3 Bxa3 29. Bg2 $11) 28. Re1 {[%emt 0:01:44] [#]} a5 {[%emt 0:02:20]} (28... Rc8 $1 $17 {[%cal Rc8c5]} 29. Qb6 Bb2) 29. Qxa5 $15 {[%emt 0:02:37]} Bxf3 {[%emt 0:04:22]} 30. Bxf3 {[%emt 0:00:01]} Qc3 {[%emt 0:01:41]} 31. Rf1 {[%emt 0:00:06]} Bxb4 {[%emt 0:00:32]} (31... Rxf3 $2 {too greedy.} 32. Qa8+ Kg7 33. Qxb7+ Kh8 34. Qxf3 $18 (34. Rxf3 Qe1+ 35. Kg2 Qd2+ 36. Kh3 Qh6+ 37. Kg4 Qg6+ 38. Kf4 Qf6+ 39. Ke3 Qc3+ 40. Ke4 Qxb4+ 41. Qxb4 Bxb4 $18) (34. Qa8+ Kg7 $18)) 32. Qd5 {[%emt 0:00:19]} b6 {[%emt 0:00:38]} 33. Bg2 {[%emt 0:00:50]} Rg8 {[%emt 0:02:19]} 34. Qb7 {[%emt 0:00:53]} (34. Be4 $5 Rf8 35. Bd3 $15) 34... Bc5 {[%emt 0:00:31]} 35. Be4 {[%emt 0:00:38]} Qg7 {[%emt 0:00:49]} (35... Qh3 {is interesting.} 36. Qa6 Qd7 37. Qc4 Qg7) 36. Qxg7+ {[%emt 0:00:34]} Rxg7 {[%emt 0:00:30]} 37. Ra1 {[%emt 0:00:22]} Re7 {[%emt 0:00:00]} 38. Bd3 {[%emt 0:00:34]} Kg7 {[%emt 0:00:09]} 39. Kg2 {[%emt 0:00:05]} Rd7 {[%emt 0:00:20]} 40. Be2 {[%emt 0:00:47]} Kf6 {[%emt 0:00:11]} 41. Kf3 {[%emt 0:00:30]} Ke5 {[%emt 0:00:05]} 42. Bc4 {[%emt 0:00:39]} Rd4 {[%emt 0:01:37]} 43. Re1+ {[%emt 0:00:17]} Kf5 {[%emt 0:00:07]} 44. Bb5 {[%emt 0:00:33]} Rf4+ {[%emt 0:00:25]} 45. Kg2 {[%emt 0:00:25]} Rf2+ {[%emt 0:00:08]} 46. Kg3 {[%emt 0:00:05]} Rd2 {[%emt 0:00:59]} 47. Re2 {[%emt 0:00:23]} Bd6+ {[%emt 0:00:29]} 48. Kf3 {[%emt 0:00:47]} Rd4 {[%emt 0:00:51]} 49. Re4 {[%emt 0:01:02]} Rd2 {[%emt 0:01:12]} (49... Rxe4 $5 50. Bd3 Bxh2 $11) 50. Re2 {[%emt 0:00:02]} Rd1 {[%emt 0:00:31]} 51. Ba4 {[%emt 0:00:47]} Rd3+ {[%emt 0:00:38]} 52. Re3 {[%emt 0:00:44]} Rxe3+ {[%emt 0:00:25]} 53. Kxe3 {[%emt 0:00:03]} Kg4 {[%emt 0:00:18]} 54. Bd7+ {[%emt 0:00:16]} Kh4 {[%emt 0:00:18]} 55. Kf3 {[%emt 0:00:12]} (55. h3 $15) 55... Bxh2 $17 {[%emt 0:00:13]} 56. Kg2 {[%emt 0:00:06]} Bd6 {[%emt 0:00:07]} 57. Kh1 {[%emt 0:00:08]} 1/2-1/2

[Event "29th Bosnjaci Open 2025"]
[Site "Bosnjaci"]
[Date "2025.01.06"]
[Round "5.9"]
[White "Bobanac, Miro"]
[Black "Pirvulescu, Ekaterina"]
[Result "1-0"]
[ECO "A37"]
[WhiteElo "2157"]
[BlackElo "2043"]
[Annotator "RC"]
[PlyCount "121"]
[EventDate "2025.01.04"]
[EventType "swiss"]
[EventCountry "CRO"]
[SourceTitle "playchess.com"]
[Source "ChessBase"]
[SourceQuality "1"]
[TimeControl "5400+30"]

1. Nf3 {[%emt 0:00:03]} c5 {[%emt 0:00:41]} 2. c4 {[%emt 0:00:42]} Nc6 {[%emt 0:02:43]} 3. g3 {[%emt 0:01:03]} g6 {[%emt 0:00:19]} 4. Bg2 {[%emt 0:00:17]} Bg7 {[%emt 0:00:17]} 5. O-O {[%emt 0:00:18]} e5 {[%emt 0:00:42]} 6. Nc3 {[%emt 0:01:11]} Nge7 {[%emt 0:00:39]} 7. Ne1 {[%emt 0:01:26]} d6 {[%emt 0:00:28]} 8. Nc2 {[%emt 0:00:59]} Be6 {[%emt 0:02:31]} 9. Ne3 {[%emt 0:00:53]} O-O {[%emt 0:00:31]} 10. d3 {[%emt 0:00:42]} Rb8 {[%emt 0:01:23]} 11. Ned5 {[%emt 0:03:29]} a6 {[%emt 0:01:50]} 12. a4 {[%emt 0:04:20]} Nb4 {[%emt 0:02:02]} 13. Nxb4 {[%emt 0:05:33]} cxb4 {[%emt 0:02:13]} 14. Ne4 {[%emt 0:00:14]} a5 {[%emt 0:12:13]} 15. b3 {[%emt 0:08:53]} h6 {[%emt 0:03:14]} 16. Bb2 {[%emt 0:00:44]} f5 {[%emt 0:01:14]} 17. Nd2 {[%emt 0:00:15]} g5 {[%emt 0:07:08]} 18. d4 {[%emt 0:06:21]} e4 {[%emt 0:05:42]} 19. e3 {[%emt 0:05:33]} d5 {[%emt 0:04:30]} 20. f3 {[%emt 0:04:59]} Qd7 {[%emt 0:07:35]} 21. Qe2 {[%emt 0:02:18]} b6 {[%emt 0:09:20]} 22. Rac1 {[%emt 0:03:52]} exf3 {[%emt 0:04:45]} 23. Bxf3 {[%emt 0:01:20]} dxc4 {[%emt 0:05:22]} 24. Nxc4 {[%emt 0:00:36]} Bd5 {[%emt 0:01:18]} 25. Rf2 {[%emt 0:09:10]} Qe6 {[%emt 0:02:21]} 26. Rcf1 {[%emt 0:06:54]} Bxf3 {[%emt 0:02:14]} 27. Qxf3 {[%emt 0:00:35]} Nd5 {[%emt 0:01:10]} 28. Bc1 {[%emt 0:06:35]} Rbe8 {[%emt 0:03:28]} 29. Bd2 {[%emt 0:01:20]} Kh7 {[%emt 0:08:15]} 30. Kh1 {[%emt 0:06:19]} Ne7 {[%emt 0:03:13]} 31. Qd1 {[%emt 0:03:31]} Qe4+ {[%emt 0:01:55]} 32. Kg1 {[%emt 0:02:24]} Nc8 {[%emt 0:03:24]} 33. Qb1 {[%emt 0:03:31]} Qxb1 {[%emt 0:00:24]} 34. Rxb1 {[%emt 0:00:10]} Kg6 {[%emt 0:01:03]} 35. Rbf1 {[%emt 0:00:48]} h5 {[%emt 0:00:34]} 36. Kg2 {[%emt 0:01:54]} Rd8 {[%emt 0:00:51]} 37. Bc1 {[%emt 0:01:28]} g4 {[%emt 0:00:51]} 38. Rd1 {[%emt 0:01:15]} Rd5 {[%emt 0:00:26]} 39. Rc2 {[%emt 0:01:17]} Re8 {[%emt 0:00:22]} 40. Kf2 {[%emt 0:00:54]} Bf6 {[%emt 0:00:43]} 41. Nb2 {[%emt 0:00:25]} Nd6 {[%emt 0:00:16]} 42. Nd3 {[%emt 0:00:33]} Ne4+ {[%emt 0:00:29]} 43. Ke2 {[%emt 0:01:11]} Rd6 {[%emt 0:00:28]} 44. Nf4+ {[%emt 0:00:54]} Kh6 {[%emt 0:00:15]} 45. Bb2 {[%emt 0:00:10]} Ng5 {[%emt 0:00:39]} 46. Kd3 {[%emt 0:01:38]} Ne4 {[%emt 0:00:17]} 47. Rdc1 {[%emt 0:00:28]} h4 {[%emt 0:00:53]} 48. gxh4 {[%emt 0:00:22]} Bxh4 {[%emt 0:00:30]} 49. Rc6 {[%emt 0:00:20]} Red8 {[%emt 0:00:38]} 50. d5 {[%emt 0:01:16]} Nc5+ {[%emt 0:00:18]} 51. Kc4 {[%emt 0:00:08]} Bg5 {[%emt 0:00:51]} 52. Be5 {[%emt 0:00:19]} Rxc6 {[%emt 0:00:23]} 53. dxc6 {[%emt 0:00:11]} Bxf4 {[%emt 0:00:36]} 54. Bxf4+ {[%emt 0:00:59]} Kg6 {[%emt 0:00:03]} 55. c7 {[%emt 0:01:42]} Rc8 {[%emt 0:00:26]} 56. Kb5 {[%emt 0:00:10]} Nxb3 {[%emt 0:00:50]} 57. Rc6+ {[%emt 0:00:16]} Kf7 {[%emt 0:00:31]} 58. Kxb6 {[%emt 0:00:11]} Nd2 {[%emt 0:00:38]} 59. Kb7 {[%emt 0:00:27]} b3 {[%emt 0:00:12]} 60. Rb6 {[%emt 0:01:27]} Nc4 {[%emt 0:00:47]} 61. Rxb3 {[%emt 0:00:28]} 1-0

[Event "29th Bosnjaci Open 2025"]
[Site "Bosnjaci"]
[Date "2025.01.06"]
[Round "5.10"]
[White "Faukovic, Matija"]
[Black "Gal, Andrej"]
[Result "0-1"]
[ECO "A23"]
[WhiteElo "2107"]
[BlackElo "2256"]
[Annotator "TA"]
[PlyCount "20"]
[EventDate "2025.01.04"]
[EventType "swiss"]
[EventCountry "CRO"]
[SourceTitle "playchess.com"]
[Source "ChessBase"]
[SourceQuality "1"]
[TimeControl "5400+30"]

{[%evp 13,20,27,22,30,45,-9,-13,-412,-408]} 1. c4 {[%emt 0:05:30]} e5 {[%emt 0:00:14][%cal Be7e5,Be5e4][%mdl 32]} 2. Nc3 {[%emt 0:00:04]} Nf6 {[%emt 0:00:16]} 3. g3 {[%emt 0:00:07]} c6 {[%emt 0:02:17]} 4. Nf3 {[%emt 0:00:03]} e4 {[%emt 0:08:43]} 5. Nd4 {[%emt 0:01:22]} d5 {[%emt 0:00:44]} 6. cxd5 {[%emt 0:00:09]} cxd5 {[%emt 0:00:01]} 7. d3 {[%emt 0:00:15]} Bc5 {[%emt 0:03:24]} 8. dxe4 {[%emt 0:00:05]} Nxe4 {[%emt 0:07:26]} 9. Nxe4 {[%emt 0:01:21]} (9. Be3 $1 $14) 9... dxe4 $11 {[%emt 0:00:04]} 10. Be3 $2 {[%emt 0:00:03][%mdl 8192] [#]} (10. e3 $11) 10... Bb4+ {[%emt 0:03:28] White did not feel at home in the position after the opening.   Loses game:     	White=1     	---        Mistake:       	White=1     	---        Best:        	---       	Black=1} 0-1

[Event "29th Bosnjaci Open 2025"]
[Site "Bosnjaci"]
[Date "2025.01.06"]
[Round "5.11"]
[White "Tomas, Ante"]
[Black "Besedes, Danilo"]
[Result "0-1"]
[ECO "D76"]
[WhiteElo "2084"]
[BlackElo "2239"]
[Annotator "TA"]
[PlyCount "70"]
[EventDate "2025.01.04"]
[EventType "swiss"]
[EventCountry "CRO"]
[SourceTitle "playchess.com"]
[Source "ChessBase"]
[SourceQuality "1"]
[TimeControl "5400+30"]

{[%evp 21,70,-29,-28,-17,0,0,-6,-22,-7,-7,0,2,0,-75,-73,-62,-66,-58,-60,-55,-67,-116,-122,-171,-172,-172,-179,-175,-172,-170,-173,-172,-157,-165,-162,-162,-163,-168,-167,-167,-167,-167,-167,-179,-183,-191,-190,-242,-204,-852,-851]} 1. Nf3 {[%emt 0:00:52]} Nf6 {[%emt 0:00:44]} 2. g3 {[%emt 0:00:09]} d5 {[%emt 0:00:53]} 3. Bg2 {[%emt 0:00:21]} g6 {[%emt 0:00:32]} 4. d4 {[%emt 0:00:42]} Bg7 {[%emt 0:00:10]} 5. O-O {[%emt 0:00:03]} O-O {[%emt 0:00:46]} 6. c4 {[%emt 0:00:19]} Nc6 {[%emt 0:00:54]} 7. cxd5 {[%emt 0:06:08]} Nxd5 {[%emt 0:00:10]} 8. e4 {[%emt 0:00:28]} Nb6 {[%emt 0:00:47]} 9. d5 {[%emt 0:02:09]} Na5 {[%emt 0:00:30]} 10. Nc3 {[%emt 0:03:09]} c6 {[%emt 0:00:17]} 11. dxc6 {[%emt 0:27:43]} Nxc6 {[%emt 0:00:43]} 12. Nd5 {[%emt 0:12:02]} Nxd5 {[%emt 0:05:03]} 13. exd5 {[%emt 0:00:35]} Nb4 {[%emt 0:00:20]} 14. Ne1 {[%emt 0:06:23]} (14. Ng5 $5) 14... Be6 {[%emt 0:06:55][%cal Re6d5]} 15. Nd3 $1 {[%emt 0:06:21]} Nxd5 {[%emt 0:06:52]} 16. Nc5 {[%emt 0:00:30]} Qd6 $36 {[%emt 0:01:14][%mdl 2048] Black fights for an advantage.} 17. Nxb7 {[%emt 0:05:53]} (17. Nxe6 $11 {keeps the balance.} fxe6 18. Re1) 17... Qc6 $17 {[%emt 0:01:18]} 18. Na5 {[%emt 0:00:11]} Qc7 {[%emt 0:03:58]} 19. Nb3 {[%emt 0:03:02][%cal Ob3d4]} (19. Bxd5 $2 Rad8 (19... Qxa5 20. Bxe6 fxe6 21. Qe2 $16) 20. Bxe6 Rxd1 (20... Qxa5 21. Qg4 $16) 21. Rxd1 fxe6 $19 (21... Qxa5 $2 22. Bd2 $19)) 19... Rad8 {[%emt 0:02:25]} 20. Qe2 {[%emt 0:05:18] Repels Ne3} Nb4 {[%emt 0:02:15]} 21. Bd2 {[%emt 0:04:14] [#]} (21. Bg5 $15) 21... Qc2 $1 {[%emt 0:06:21] Black has more active pieces.} 22. Qe4 {[%emt 0:06:37] [#]} (22. Be4 $17 Qxb2 23. Rfb1) 22... Qxe4 $1 $19 {[%emt 0:02:31]} ({Much worse is} 22... Rxd2 $6 23. Nxd2 Qxd2 24. Rfd1 Qxb2 25. Rab1 Qxa2 26. Qxb4 $11 (26. Rxb4 a5 $15)) 23. Bxe4 {[%emt 0:00:02] [#]} Nxa2 $1 {[%emt 0:00:42][%mdl 512]} 24. Rxa2 {[%emt 0:04:47]} (24. Nc5 Rxd2) 24... Bxb3 {[%emt 0:00:11]} 25. Ra3 {[%emt 0:00:05][%cal Ba2a3,Ba3b3,Bb3b1,Bb1b7][%mdl 32]} Rxd2 {[%emt 0:00:50]} 26. Rxb3 {[%emt 0:00:01]} Rxb2 {[%emt 0:00:36]} 27. Rb1 {[%emt 0:02:30]} Rxb1+ {[%emt 0:01:14]} 28. Rxb1 {[%emt 0:00:06][%mdl 4096] Endgame KRB-KRB. Black is two pawns up.} Bd4 {[%emt 0:00:21]} 29. Rb7 {[%emt 0:00:32]} e6 {[%emt 0:00:37]} 30. Kf1 {[%emt 0:00:09]} Rc8 {[%emt 0:00:28]} 31. Ke2 {[%emt 0:00:32]} Rc3 {[%emt 0:00:56]} 32. f3 {[%emt 0:01:53]} h5 {[%emt 0:01:11]} 33. h3 {[%emt 0:00:15]} Bb6 {[%emt 0:01:36]} 34. h4 {[%emt 0:02:55]} (34. Rd7 {is a better defense.}) 34... Kg7 {[%emt 0:01:54]} 35. g4 $2 {[%emt 0:00:32]} (35. Kf1) 35... hxg4 {[%emt 0:00:09]} 0-1

[Event "29th Bosnjaci Open 2025"]
[Site "Bosnjaci"]
[Date "2025.01.06"]
[Round "5.12"]
[White "Starcevic, Ante Leon"]
[Black "Konjevic, Nikola"]
[Result "1/2-1/2"]
[ECO "D02"]
[WhiteElo "2200"]
[BlackElo "2095"]
[Annotator "RC"]
[PlyCount "95"]
[EventDate "2025.01.04"]
[EventType "swiss"]
[EventCountry "CRO"]
[SourceTitle "playchess.com"]
[Source "ChessBase"]
[SourceQuality "1"]
[TimeControl "5400+30"]

1. Nf3 {[%emt 0:03:44]} d5 {[%emt 0:00:09]} 2. d4 {[%emt 0:00:16]} Nf6 {[%emt 0:00:16]} 3. c3 {[%emt 0:01:03]} e6 {[%emt 0:01:55]} 4. Bf4 {[%emt 0:00:06]} Bd6 {[%emt 0:00:12]} 5. e3 {[%emt 0:00:05]} c5 {[%emt 0:12:20]} 6. Bb5+ {[%emt 0:10:19]} Nc6 {[%emt 0:00:18]} 7. Ne5 {[%emt 0:03:06]} Qc7 {[%emt 0:02:07]} 8. Nd2 {[%emt 0:10:20]} O-O {[%emt 0:09:22]} 9. Nxc6 {[%emt 0:08:44]} bxc6 {[%emt 0:18:28]} 10. Bxd6 {[%emt 0:00:08]} Qxd6 {[%emt 0:00:04]} 11. Bd3 {[%emt 0:02:15]} cxd4 {[%emt 0:06:40]} 12. cxd4 {[%emt 0:03:40]} c5 {[%emt 0:00:07]} 13. dxc5 {[%emt 0:01:35]} Qxc5 {[%emt 0:00:16]} 14. Rc1 {[%emt 0:01:59]} Qb6 {[%emt 0:04:44]} 15. Qb3 {[%emt 0:00:36]} Qa5 {[%emt 0:03:44]} 16. Rc3 {[%emt 0:07:00]} Ba6 {[%emt 0:04:05]} 17. Bxa6 {[%emt 0:08:14]} Qxa6 {[%emt 0:00:08]} 18. Qa3 {[%emt 0:00:05]} Qxa3 {[%emt 0:01:09]} 19. Rxa3 {[%emt 0:04:24]} Rfc8 {[%emt 0:00:09]} 20. Kd1 {[%emt 0:00:11]} Ng4 {[%emt 0:03:12]} 21. Ke2 {[%emt 0:00:06]} Rc2 {[%emt 0:00:53]} 22. f3 {[%emt 0:05:56]} Ne5 {[%emt 0:02:04]} 23. b3 {[%emt 0:00:06]} Nc6 {[%emt 0:04:38]} 24. Ra4 {[%emt 0:01:24]} Rb8 {[%emt 0:02:05]} 25. Ra1 {[%emt 0:01:58]} Rc3 {[%emt 0:09:42]} 26. Kd1 {[%emt 0:04:35]} Kf8 {[%emt 0:01:18]} 27. Rc1 {[%emt 0:00:30]} Rxc1+ {[%emt 0:00:04]} 28. Kxc1 {[%emt 0:00:03]} Ke7 {[%emt 0:00:08]} 29. Ra6 {[%emt 0:02:50]} Rb6 {[%emt 0:00:20]} 30. Rxb6 {[%emt 0:01:29]} axb6 {[%emt 0:00:02]} 31. a4 {[%emt 0:02:29]} Kd6 {[%emt 0:00:53]} 32. Kc2 {[%emt 0:00:09]} Kc5 {[%emt 0:00:12]} 33. Kc3 {[%emt 0:00:13]} Nb4 {[%emt 0:01:33]} 34. f4 {[%emt 0:01:33]} Na2+ {[%emt 0:02:57]} 35. Kb2 {[%emt 0:00:08]} Nb4 {[%emt 0:00:10]} 36. Nf3 {[%emt 0:01:14]} f6 {[%emt 0:04:01]} 37. Nd4 {[%emt 0:00:27]} Kd6 {[%emt 0:00:25]} 38. Ka3 {[%emt 0:01:02]} Nd3 {[%emt 0:01:49]} 39. b4 {[%emt 0:00:26]} g6 {[%emt 0:00:11]} 40. Nf3 {[%emt 0:07:48]} e5 {[%emt 0:00:44]} 41. fxe5+ {[%emt 0:00:21]} Nxe5 {[%emt 0:02:09]} 42. Nxe5 {[%emt 0:02:29]} fxe5 {[%emt 0:00:01]} 43. a5 {[%emt 0:04:05]} b5 {[%emt 0:00:48]} 44. Kb3 {[%emt 0:00:07]} h5 {[%emt 0:00:23]} 45. g4 {[%emt 0:02:25]} hxg4 {[%emt 0:00:21]} 46. Kc3 {[%emt 0:00:02]} g3 {[%emt 0:00:08]} 47. hxg3 {[%emt 0:00:04]} g5 {[%emt 0:00:03]} 48. Kd3 {[%emt 0:00:36]} 1/2-1/2